Cogmind - Beta 17 @@@ ROGUE MODE // 2026.08.01 @ 20:09:18 Player: Riddarn Result: Destroyed by as-97055 with Assembled Heavy Rifle Performance ------------- Evolutions (0) 0 Regions Visited (4) 800 Robots Destroyed (17) 85 Value Destroyed (440) 440 Prototype IDs (0) 0 Alien Tech Used (0) 0 Bonus (300) 300 TOTAL SCORE: 1625 Bonus ------- Aligned with FarCom 300 Cogmind --------- Core Integrity 0/250 Matter 258/300 Energy 74/100 System Corruption 1% Temperature Cool (0) Movement Core (350) Ox6 Location -9/Mines Parts ------- > --- POWER (1) -------- (None) > --- PROPULSION (2) --- (None) > --- UTILITY (2) ------ Large Storage Unit Targeting Computer > --- WEAPON (2) ------- Light Assault Rifle > --- INVENTORY (15) --- Ion Engine Light Ion Engine Scrap Suit Structural Scanner Light Armor Plating EM Pulse Gun Light Assault Rifle Stasis Trap (100%) Stasis Trap (100%) Stasis Trap (100%) Stasis Trap (100%) Peak State ------------ > --- POWER ------------ Ion Engine > --- PROPULSION ------- Light Treads > --- UTILITY ---------- Large Storage Unit Targeting Computer > --- WEAPON ----------- Light Assault Rifle Rocket Launcher > --- INVENTORY -------- Ion Engine Light Ion Engine Aluminum Leg Scrap Suit Structural Scanner Light Armor Plating EM Pulse Gun Light Assault Rifle Datajack Mining Laser Stasis Trap Stasis Trap Stasis Trap Stasis Trap [Rating: 9] Favorites ----------- Power Ion Engine Engine Ion Engine Propulsion Light Treads Treads Light Treads Utility Targeting Computer Storage Large Storage Unit Processor Targeting Computer Weapon Light Assault Rifle Energy Gun EM Pulse Gun Energy Cannon Beam Cannon Ballistic Gun Light Assault Rifle Launcher Rocket Launcher Special Weapon Mining Laser Special Melee Weapon Datajack Build | -11 -10 -10 -10 -9 ------- Run | Yrd Mat Min Exi Min Slots Evolved . | . . . . . Power . | . . . . . Propulsion . | . . . . . Utility . | . . . . . Weapon . | . . . . . Parts Attached 21 | 6 11 3 . 1 Power 5 | 1 3 1 . . Engine 5 | 1 3 1 . . Core . | . . . . . Reactor . | . . . . . Propulsion 4 | 2 1 1 . . Treads 4 | 2 1 1 . . Leg . | . . . . . Wheel . | . . . . . Hover . | . . . . . Flight . | . . . . . Utility 5 | 1 4 . . . Device . | . . . . . Storage 4 | 1 3 . . . Processor 1 | . 1 . . . Hackware . | . . . . . Protection . | . . . . . Artifact . | . . . . . Weapon 7 | 2 3 1 . 1 Energy Gun 1 | 1 . . . . Energy Cannon 1 | . 1 . . . Ballistic Gun 2 | 1 1 . . . Ballistic Cannon . | . . . . . Launcher 1 | . . 1 . . Special Weapon 1 | . 1 . . . Impact Weapon . | . . . . . Slashing Weapon . | . . . . . Piercing Weapon . | . . . . . Special Melee Weapon 1 | . . . . 1 Unidentified Prototypes . | . . . . . Parts Lost 9 | . 2 2 . 5 Power 1 | . . . . 1 Propulsion 4 | . 1 2 . 1 Utility 1 | . 1 . . . Weapon 3 | . . . . 3 Highest Loss Streak 5 | . 1 1 . 5 To Critical Strikes . | . . . . . Average Backups 8 | 1 7 9 10 9 Power 1 | . 1 2 2 2 Propulsion 1 | . 2 1 1 . Utility 1 | . . 1 3 3 Weapon 2 | . 2 3 3 3 Tool/Special . | . . . . . Unused Backups 10 | . 5 . . 5 Power 1 | . . . . 1 Propulsion 2 | . 1 . . 1 Utility 3 | . . . . 3 Weapon 4 | . 4 . . . Tool/Special . | . . . . . Average Slot Usage (%) 89 | . 96 86 85 84 Engine 13 | . 14 14 14 13 Treads 19 | . 27 15 14 14 Storage 15 | . 18 14 14 14 Processor 11 | . 6 14 14 14 Energy Gun 2 | . 8 . . . Energy Cannon 2 | . 1 7 . . Ballistic Gun 11 | . 12 14 14 . Launcher 5 | . . 2 14 14 Special Weapon 3 | . 5 4 . . Special Melee Weapon 2 | . . . . 13 Peak Build Rating 9 | 6 8 9 9 9 Average Rating 7 | 5 6 7 9 8 On Entrance 6 | . 6 7 9 9 Avg Prop Armor Cover (%) . | . . . . . Naked Turns . | . . . . . Heaviest Build 89 | 13 89 30 30 30 Greatest Support 40 | 40 40 40 20 20 Greatest Overweight (x) 2 | 1 2 1 1 1 Average Overweight (x) . | . . . 1 1 Largest Inventory Capacity 25 | 8 25 15 15 15 Average Capacity 13 | 7 10 15 15 15 Most Carried 15 | 4 11 15 15 15 Average Carried 10 | 1 7 10 15 14 Final Capacity 15 | 8 15 15 15 15 Final Carried 15 | 4 8 15 15 12 Class Distribution -------------------- 100% | Mutant Dominant Class ---------------- Mutant | -10/Materials Mutant | -10/Mines Mutant | -10/Exiles Mutant | -9/Mines Resources | -11 -10 -10 -10 -9 ----------- Run | Yrd Mat Min Exi Min Matter Collected 604 | 260 228 66 . 50 Remotely . | . . . . . Salvage Created 489 | . 359 120 . 10 Parts 29 | . 20 9 . . Haulers Intercepted . | . . . . . Recyclers Shooed . | . . . . . Parts Field Recycled . | . . . . . Retrieved Matter . | . . . . . Parts Self-Destructed . | . . . . . Prevented . | . . . . . Parts Restored . | . . . . . Kills | -11 -10 -10 -10 -9 ------- Run | Yrd Mat Min Exi Min Combat Hostiles Destroyed 20 | . 11 5 . 4 Guns 8 | . 5 3 . . Cannons 7 | . 5 2 . . AOE 5 | . 1 . . 4 Classes Destroyed 4 | . 2 1 . 1 Tunneler 1 | . . 1 . . Swarmer 6 | . 3 3 . . Grunt 10 | . 8 2 . . Assembled 4 | . . . . 4 Best Kill Streak 4 | . 3 3 . 4 Combat Bots Only 4 | . 3 3 . 4 Max Kills in Single Turn 2 | . 1 1 . 2 Gunslinging . | . . . . . Exploded 2 | . 1 . . 2 Melee . | . . . . . Uniques/NPCs Destroyed . | . . . . . Combat | -11 -10 -10 -10 -9 -------- Run | Yrd Mat Min Exi Min Hostile Shots Fired 163 | . 87 36 . 40 Missed 54 | . 29 8 . 17 Hits 109 | . 58 28 . 23 Melee 2 | . . . . 2 Projectile 107 | . 58 28 . 21 Critical Strikes 2 | . 2 . . . Damage Taken 1466 | . 709 287 . 470 Core 260 | . 123 27 . 110 Absorbed by Shields . | . . . . . Core Remaining (%) 100 | 100 . . . . Volleys Fired 73 | . 41 28 . 4 Largest 2 | . 2 2 . 1 Hottest 120 | . 80 120 . 33 Shots Fired 118 | . 70 44 . 4 Gun 90 | . 61 28 . 1 Cannon 22 | . 9 13 . . Launcher 3 | . . . . 3 Special 3 | . . 3 . . Kinetic 65 | . 36 28 . 1 Thermal 25 | . 9 16 . . Explosive 3 | . . . . 3 Electromagnetic 25 | . 25 . . . Robot Hit Streak 10 | . 9 9 . 10 Robot Miss Streak 3 | . 3 3 . . Penetration Max . | . . . . . Secondary Targets 2 | . 2 . . . Max Gunslinging Chain 1 | . 1 . . . Shots Hit Robots 82 | . 44 29 . 9 Core Hits 36 | . 19 11 . 6 Critical Kills . | . . . . . Critical Parts Destroyed . | . . . . . Critical Strikes . | . . . . . Melee Attacks 6 | . . . . 6 Impact . | . . . . . Slashing . | . . . . . Piercing . | . . . . . Sneak Attacks 6 | . . . . 6 Combat Hostiles . | . . . . . Follow-up Attacks . | . . . . . Damage Inflicted 1215 | . 561 334 . 320 Guns 526 | . 374 146 . 6 Cannons 296 | . 140 156 . . Explosions 353 | . 39 . . 314 Melee . | . . . . . Ramming 16 | . 8 8 . . Kinetic 329 | . 177 146 . 6 Thermal 359 | . 179 180 . . Explosive 314 | . . . . 314 Electromagnetic 197 | . 197 . . . Impact . | . . . . . Slashing . | . . . . . Piercing . | . . . . . Highest Corruption 1 | . 1 1 1 1 Average Corruption 1 | . 1 1 1 1 Corruption Purged . | . . . . . Corruption Blocked . | . . . . . Effects 29 | . 8 10 4 7 Message Errors 11 | . 4 4 1 2 Matter Fused 6 | . . 1 3 2 Heat Flow Errors 1 | . 1 . . . Energy Discharges 5 | . 1 3 . 1 Data Loss (minor) 3 | . 2 . . 1 Data Loss (major) 2 | . . 1 . 1 Alerts 1 | . . 1 . . Overload Shots . | . . . . . Overflow Damage 7 | . . . . 7 Projectiles . | . . . . . Explosions 7 | . . . . 7 Melee . | . . . . . Knockbacks 1 | . . 1 . . Impact 1 | . . 1 . . Kinetic . | . . . . . Secondary . | . . . . . Self-Inflicted Damage 151 | . 23 . . 128 Shots 4 | . 1 . . 3 Rammed 3 | . 2 1 . . Targets Rammed 4 | . 2 2 . . Kicked . | . . . . . Crushed 1 | . . 1 . . Highest Temperature 392 | . 212 392 . . Average Temperature 102 | . 76 149 . . Received Heat Transfer 491 | . 372 99 . 20 Effects 1 | . . 1 . . Shutdowns 1 | . . 1 . . Siege Activations . | . . . . . Martial Activations . | . . . . . Shielding Activations . | . . . . . Robots Disrupted . | . . . . . Combat Hostiles . | . . . . . Robots Corrupted . | . . . . . Combat Hostiles . | . . . . . Parts Fried 2 | . 2 . . . Impact Corruptions . | . . . . . Robots Melted . | . . . . . Combat Hostiles . | . . . . . Parts Melted 1 | . 1 . . . Heat Transferred 679 | . 296 383 . . Parts Sabotaged . | . . . . . Parts Stolen . | . . . . . Parts Stripped . | . . . . . Power Chain Reactions 1 | . 1 . . . Alert | -11 -10 -10 -10 -9 ------- Run | Yrd Mat Min Exi Min Maximum Alert Level . | . . . . . Low Security (%) 100 | 100 100 100 . 100 Level 1 . | . . . . . Level 2 . | . . . . . Level 3 . | . . . . . Level 4 . | . . . . . Level 5 . | . . . . . High Security . | . . . . . Max Security . | . . . . . Peak Influence 121 | . 121 55 . 13 Initial 19 | . . 19 . . Average 13 | . 28 5 . . Influence Increases 486 | . 325 140 . 21 Destroy 0b10 Robot/C 320 | . 220 100 . . Destroy 0b10 Robot/NC 5 | . . 5 . . Destroy Leader 60 | . 40 20 . . Successful Hack 25 | . 25 . . . Disable Machine 30 | . 15 15 . . Destroy Structure 31 | . 10 . . 21 Lose Combat Pursuer 15 | . 15 . . . Influence Decreases 486 | . 275 190 . 21 Entered New Map 31 | . . 31 . . Time Decay 412 | . 265 139 . 8 Lost Part 43 | . 10 20 . 13 Squads Dispatched 6 | . 6 . . . Investigation 5 | . 5 . . . Extermination . | . . . . . Reinforcement 1 | . 1 . . . Assault . | . . . . . Garrison . | . . . . . Intercept . | . . . . . Searches Triggered . | . . . . . Construction Impeded . | . . . . . Haulers Reinforced . | . . . . . Active Scanning Responses . | . . . . . Cargo Convoy Interrupts . | . . . . . Stealth | -11 -10 -10 -10 -9 --------- Run | Yrd Mat Min Exi Min Distress Signals 3 | . 3 . . . Communications Jammed . | . . . . . Distress Signals . | . . . . . Times Spotted 36 | . 18 5 . 13 Peak Tracking Total 9 | . 4 3 . 9 Tactical Retreats 1 | . 1 . . . Traps | -11 -10 -10 -10 -9 ------- Run | Yrd Mat Min Exi Min Traps Triggered 1 | . 1 . . . Indirectly . | . . . . . Trap Hack Attempts . | . . . . . Triggered . | . . . . . Disarmed . | . . . . . Reprogrammed . | . . . . . Reused . | . . . . . Traps Extracted . | . . . . . Installed . | . . . . . Triggered . | . . . . . Most Traps Carried 4 | . . 4 4 4 Machines | -11 -10 -10 -10 -9 ---------- Run | Yrd Mat Min Exi Min Machines Disabled 2 | . 1 1 . . Max in Single Turn 1 | . 1 1 . . Machines Repaired . | . . . . . Machines Dismantled . | . . . . . Machines Sabotaged . | . . . . . Overloaded Fab Kills . | . . . . . Hacking | -11 -10 -10 -10 -9 --------- Run | Yrd Mat Min Exi Min Machines Accessed 6 | . 6 . . . Terminals 5 | . 5 . . . Fabricators . | . . . . . Repair Stations . | . . . . . Recycling Units 1 | . 1 . . . Scanalyzers . | . . . . . Garrison Access . | . . . . . Total Hacks 21 | . 21 . . . Successful 11 | . 11 . . . Failed 10 | . 10 . . . Catastrophic 1 | . 1 . . . Database Lockouts . | . . . . . Manual 1 | . 1 . . . Terminals 18 | . 18 . . . Fabricators . | . . . . . Repair Stations . | . . . . . Recycling Units 3 | . 3 . . . Scanalyzers . | . . . . . Garrison Access . | . . . . . Terminal Hacks 10 | . 10 . . . Record 4 | . 4 . . . Branch Access Points 1 | . 1 . . . Alert Level 1 | . 1 . . . Investigation Status 1 | . 1 . . . Hauler Manifests 2 | . 2 . . . Zone Layout 1 | . 1 . . . Fabricator Hacks . | . . . . . Repair Station Hacks . | . . . . . Recycling Unit Hacks 1 | . 1 . . . Report Inventory 1 | . 1 . . . Scanalyzer . | . . . . . Garrison Access Hacks . | . . . . . Unauthorized Hacks . | . . . . . Terminals . | . . . . . Fabricators . | . . . . . Repair Stations . | . . . . . Recycling Units . | . . . . . Scanalyzers . | . . . . . Garrison Access . | . . . . . Data Cores Recovered . | . . . . . Used . | . . . . . Hacking Detections 5 | . 5 . . . Full Trace Events 4 | . 4 . . . Feedback Events 1 | . 1 . . . Corruption 1 | . 1 . . . Feedback Blocked . | . . . . . Robot Schematics Acquired . | . . . . . Robots Built . | . . . . . Authchips . | . . . . . Time . | . . . . . Total Robot Build Rating . | . . . . . Part Schematics Acquired . | . . . . . Parts Built . | . . . . . Authchips . | . . . . . Time . | . . . . . Total Part Build Rating . | . . . . . Part Studies Acquired . | . . . . . Parts Repaired . | . . . . . Time . | . . . . . Parts Recycled . | . . . . . Recycled Matter . | . . . . . Retrieved Matter . | . . . . . Retrieved Components . | . . . . . Parts Scanalyzed . | . . . . . Part Schematics Acquired . | . . . . . Parts Damaged . | . . . . . Bothacking | -11 -10 -10 -10 -9 ------------ Run | Yrd Mat Min Exi Min Used RIF Installer . | . . . . . Robots Hacked 2 | . . . . 2 Non-combat 2 | . . . . 2 Combat . | . . . . . Robot Hacks Applied 3 | . . . . 3 parse_system 1 | . . . . 1 no_distress 2 | . . . . 2 Relay Couplers Released . | . . . . . Fabnet Peak Effective % . | . . . . . Robots Rewired . | . . . . . Allies Hacked . | . . . . . Hacks Repelled . | . . . . . Allies | -11 -10 -10 -10 -9 -------- Run | Yrd Mat Min Exi Min Total Allies . | . . . . . Largest Group . | . . . . . Highest-Rated Group . | . . . . . Highest-Rated Ally . | . . . . . Total Orders . | . . . . . Ally Attacks . | . . . . . Total Damage . | . . . . . Kills . | . . . . . Allies Corrupted . | . . . . . Allies Melted . | . . . . . Intel | -11 -10 -10 -10 -9 ------- Run | Yrd Mat Min Exi Min Active Infowar (turns) . | . . . . . Robot Analysis Total . | . . . . . Derelict Logs Recovered 3 | . . 1 . 2 Drone Launches . | . . . . . Drone Recoveries . | . . . . . Exploration | -11 -10 -10 -10 -9 ------------- Run | Yrd Mat Min Exi Min Turns Passed 4287 | 220 1459 1248 596 764 Spaces Moved 1981 | 135 774 515 248 309 Core 10 | 10 . . . . Treads 1971 | 125 774 515 248 309 Legs . | . . . . . Wheels . | . . . . . Hover . | . . . . . Flight . | . . . . . Fastest Speed 50 | 50 160 160 240 240 Average Speed 201 | 154 167 224 240 240 Slowest Speed 320 | 160 320 240 240 240 Overloaded Moves . | . . . . . Propulsion Burnouts . | . . . . . Robots Hopped . | . . . . . Potential Cave-ins . | . . . . . Cave-ins Triggered . | . . . . . Exploration Rate (%) 51 | 5 74 75 49 55 Regions Visited 4 Branch Regions 3 Pre-discovered Areas . | . . . . . Known Exits Taken 1 | . 1 . . . Unknown Exits Taken 3 | 1 . 1 1 . Scrap Searched 2 | . . 1 . 1 Spaces Dug . | . . . . . Terrain Destroyed 31 | . 8 . . 23 Melee . | . . . . . Projectile . | . . . . . AOE 31 | . 8 . . 23 Terrain Rammed . | . . . . . Walls Destroyed . | . . . . . Machines Disabled . | . . . . . Actions | -11 -10 -10 -10 -9 --------- Run | Yrd Mat Min Exi Min Total 2156 | 144 878 558 250 326 Wait 9 | . 3 1 3 2 Move 1977 | 134 773 514 247 309 Hop . | . . . . . Pick Up 33 | 4 22 7 . . Fast Attach 7 | 6 . 1 . . Attach 17 | . 12 2 . 3 Detach 8 | . 6 1 . 1 Swap 7 | . 6 1 . . Drop 14 | . 12 1 . 1 Fire 73 | . 41 28 . 4 Melee 6 | . . . . 6 Ram . | . . . . . Kick . | . . . . . Crush 4 | . 2 2 . . Escape Stasis . | . . . . . Rewire 1 | . 1 . . . Trap . | . . . . . Miscellaneous . | . . . . . Route ------- -11/Scrapyard -10/Materials (discovered 4 exits: [*Mat x2] / *Min x2) -10/Mines (discovered 3 exits: [*Mat] / *Exi / [*Sub]) -10/Exiles -9/Mines History --------- Turn | Location | Event 10 | -11/Scrapyard | Discovered new exit (range 16) 221 | -11/Scrapyard | Entered Materials 317 | -10/Materials | Build established: Mutant 357 | -10/Materials | Discovered new exit (range 10) 573 | -10/Materials | Discovered new exit (range 16) 648 | -10/Materials | Discovered new exit (range 15) 970 | -10/Materials | Identified exit to Mines 1680 | -10/Materials | Entered Mines 1846 | -10/Mines | Core integrity fell below 50% 2041 | -10/Mines | Found a Scrap Suit stashed away for nefarious purposes 2045 | -10/Mines | Found Scrap Suit 2068 | -10/Mines | Discovered new exit (range 6) 2298 | -10/Mines | Discovered new exit (range 6) 2444 | -10/Mines | Learned location of 1 exit from Materials 2514 | -10/Mines | Found a hidden stash of uninstalled traps 2733 | -10/Mines | Received a Rocket Launcher from a helpful Derelict 2913 | -10/Mines | Deemed a non-threat by the Exiles lab entrance 2916 | -10/Mines | Discovered new exit (range 5) 2928 | -10/Mines | Entered Exiles 2969 | -10/Exiles | Discovered new exit (range 14) 3010 | -10/Exiles | Met 8R-AWN 3060 | -10/Exiles | Met EX-HEX 3134 | -10/Exiles | Met EX-BIN 3187 | -10/Exiles | Aligned with FarCom system 3190 | -10/Exiles | Given EX-Vault access code 3347 | -10/Exiles | Met EX-DEC 3524 | -10/Exiles | Entered Mines 3589 | -9/Mines | Learned 4 Materials zone layouts 3713 | -9/Mines | Learned 2 Materials zone layouts 4246 | -9/Mines | Assembled infested the area 4251 | -9/Mines | Assisted by a Guerilla fighting off Assembled 4277 | -9/Mines | Core integrity fell below 20% 4288 | -9/Mines | Destroyed by as-97055 with Assembled Heavy Rifle Last Messages --------------- System corrupted: Component data lost. ALERT: Infestation in the mines, dispatching Demolisher response squad. A derelict emerges from the shadows: "You need to get out of here! I've been tracking a group of Assembled to figure out where they're coming from, and they're closing on this area, come on!" Datajack destroyed. as-99317 destroyed. as-30784 destroyed. Ion Engine destroyed. Destroyed Ion Engine. as-01064 destroyed. Destroyed Asb. Hover Unit. as-90115 destroyed. Rocket Launcher destroyed. The unstable cave ceiling collapses. Mining Laser destroyed. Lgt. Treads destroyed. Map ----- +----------------------------------------------------+ | ??????????????????????????????????????????????? | | ##????????????????????????????????????????????? | | ##???????????????????????????????????????????? | | #???????????????????????????????????????????? | | #???????????????????????????????????????????? | | ######??????????????????????????????????????? | | ###????????????????????????????????????? | | ##????????####???????????????????????? | | #?????#### ???????????????????????? | | #???? ? ???????????????????????? | | #### #??# ???????????????????????? | | #??? ???????????????????????? | | #??? ???????????????????????? | | ## ## #####???# ???????????????????????? | | ######### #???????# #???????????????????????? | | #???????# #???????# ###?????????????????????? | | #???????# ######??# ##?????????????? ????? | | ##??????# #??# ##??####?????? ?????? | | ##?????###### #### #?## ##???? #?????? | | #??????????# ## #?# ##??# #?????? | | #??????????#### ## #?# ### #?????? | | ##?????????????# #### #?????? | | ##??????????????##### # # ??????? | | ##???????????????????# #??????????? | | #????????????????????## #??????????? | | ??????????????????????# @ #??????????? | | ??????????????????????# a ###????????? | | ??????????????????????## #????????? | | ???????????????????????# % aa #??? | | ???????????????????????## # a #?? | | ????????????????????????# ## ### aaa #?? | | ????????????????????????###?##??# aa #?? | | ?????????????????????????????????##### #?? | | ??????????????????????????????????????? ##?? | | #??????????????????????????????????????? #??? | | ##???????????????????????????????????????? #??? | | ##????????????????????????????????????????#??? | | #???????????????????????????????????????????? | | #???????????????????????????????????????????? | | ##???????????????????????????????????????????? | | ##????????????????????????????????????????????? | | ??????????????????????????????????????????????? | | ??????????????????????????????????????????????? | | ??????????????????????????????????????????????? | | ??????????????????????????????????????????????? | | ??????????????????????????????????????????????? | | ??????????????????????????????????????????????? | | ??????????????????????????????????????????????? | | ??????????????????????????????????????????????? | | ??????????????????????????????????????????????? | +----------------------------------------------------+ Best States ------------- Heat Dissipation 25 Energy Generation 10 Energy Capacity 250 Matter Stores 350 Matter Capacity 350 Sight Range 16 Terrain Scan Density 10 Evasion (%) 40 Targeting Accuracy 5 Recoil Reduction 2 Item Schematics ----------------- None Robot Schematics ------------------ None Fabricated ------------ Nothing Repaired ---------- Nothing Studied --------- None Alien Tech Used ----------------- None Achievements -------------- Sixth Sense Tourist Challenges ------------ None Game ------ Seed TrackerLaserOptics Manual? 0 Play Time 00:37:52 Cumulative 7.1 hours Start 2026.08.01 @ 19:23:05 End 2026.08.01 @ 20:09:18 Sessions 1 Manual Loads 0 Difficulty Rogue Special Mode None Game No. 10 Rogue 6 Adventurer 4 Explorer 0 Win Type - Total 0 Types 0/0/0/0/0/0/0/0/0/0 Lore% 2 Gallery% 10 Achievement% 8 Wizard Run 0 Options --------- Layout 1 ASCII 0 Keyboard 0 Movement Numpad Keybinds 0 Fullscreen 1 Font 32/Terminus Map View 50x35 Zoom Use 0% Tactical HUD 0 Map Filters NONE Filters NONE Steam 1 RUN: b437ad2c-a81a-49be-afce-41f7720af504